bitfinex/quotes_SOLUSD_20250421
["timestamp","ask_amount","ask_price","bid_price","bid_amount"]
[1745210595762,27.6454,139.74,139.69,245.2]
[1745210595956,7.6801252,139.73,139.69,245.2]
[1745210596453,1.6454,139.74,139.69,245.2]
[1745210596659,7.7101252,139.74,139.69,252.8801252]
[1745210598582,7.7101252,139.74,139.7,7.6801252]
[1745210599686,0.03,139.74,139.7,7.6801252]
[1745210601587,0.03,139.74,139.71,7.6801252]
[1745210604982,0.03,139.74,139.7,7.82228677]
[1745210605173,0.03,139.74,139.72,14.42]
[1745210605375,7.6801252,139.73,139.72,14.42]
[1745210607590,7.7101252,139.74,139.72,14.42]
[1745210610075,0.03,139.74,139.72,14.42]
[1745210612371,7.7101252,139.74,139.72,14.42]
[1745210613090,0.03,139.74,139.72,14.42]
[1745210613292,7.7101252,139.74,139.72,14.42]
[1745210614002,0.03,139.74,139.72,14.42]
[1745210620592,7.7101252,139.74,139.72,14.42]
[1745210621198,7.6801252,139.73,139.72,14.42]
[1745210625382,0.03,139.74,139.72,14.42]
[1745210632582,0.03,139.74,139.73,7.6801252]
[1745210632883,0.03,139.74,139.73,7.82228677]
[1745210633090,0.03,139.74,139.72,40.42]
[1745210635213,0.03,139.74,139.72,48.1001252]
[1745210638597,0.03,139.74,139.73,7.6801252]
[1745210640111,0.03,139.74,139.73,26.47193563]
[1745210649614,0.03,139.74,139.72,48.47833538]
[1745210649817,0.03,139.74,139.72,40.42]
[1745210650014,0.03,139.74,139.73,8.05833538]
[1745210650195,0.03,139.74,139.73,8.20049695]
[1745210657630,0.03,139.74,139.72,14.42]
[1745210658120,8.08833538,139.74,139.72,14.42]
[1745210659223,0.03,139.74,139.72,14.42]
[1745210660097,0.03,139.74,139.72,22.47833538]
[1745210660619,0.03,139.74,139.73,8.05833538]
[1745210664332,0.03,139.74,139.73,253.13833538]
[1745210669125,0.03,139.74,139.73,267.53833538]
[1745210669829,0.03,139.77,139.73,368.63484581]
[1745210670008,0.03,139.82,139.79,44.79181043]
[1745210670213,0.03,139.82,139.81,26.85014581]
[1745210670415,0.03,139.82,139.81,30.3325819]
[1745210670628,0.03,139.82,139.81,26.85014581]
[1745210672212,0.03,139.82,139.81,44.79181043]
[1745210672413,0.03,139.82,139.81,52.85014581]
[1745210673339,0.03,139.82,139.81,44.79181043]
[1745210673629,0.03,139.82,139.81,52.85014581]
[1745210675431,0.03,139.82,139.81,26.85014581]
[1745210675740,0.03,139.82,139.81,52.85014581]
[1745210676244,0.03,139.82,139.81,26.85014581]
[1745210676737,0.03,139.82,139.81,52.85014581]
[1745210676918,0.03,139.82,139.81,26.85014581]
[1745210677111,0.03,139.82,139.81,52.85014581]
[1745210677545,0.03,139.82,139.81,26.85014581]
[1745210677840,0.03,139.82,139.81,52.85014581]
[1745210678024,0.03,139.82,139.81,26.85014581]
[1745210678227,0.03,139.82,139.8,14.4]
[1745210678416,0.03,139.82,139.8,40.4]
[1745210678839,0.03,139.82,139.81,8.20049695]
[1745210679223,0.03,139.82,139.81,0.14216157]
[1745210679418,0.03,139.82,139.8,14.4]
[1745210679922,8.05833538,139.81,139.8,14.4]
[1745210680520,14.23183538,139.81,139.8,14.4]
[1745210683941,6.1735,139.81,139.8,14.4]
[1745210684240,14.23183538,139.81,139.8,14.4]
[1745210691543,8.05833538,139.81,139.8,14.4]
[1745210692850,8.05531605,139.81,139.8,14.4]
[1745210696945,8.05456136,139.81,139.8,14.4]
[1745210701059,9.69266136,139.82,139.8,14.4]
[1745210701356,8.05456136,139.81,139.8,14.4]
[1745210730371,6.0941,139.8,139.79,14.38]
[1745210730577,65.01655566,139.8,139.79,14.38]
[1745210730773,32.79831022,139.8,139.79,14.38]
[1745210733265,65.01655566,139.8,139.79,14.38]
[1745210733467,80.8,139.81,139.79,14.38]
[1745210733682,8.05456136,139.8,139.79,14.38]
[1745210735687,0.03,139.82,139.79,14.38]
[1745210735988,8.05456136,139.81,139.79,14.38]
[1745210738388,8.05456136,139.8,139.79,14.38]
[1745210740496,8.05456136,139.81,139.79,14.38]
[1745210742689,0.03,139.82,139.79,14.38]
[1745210742898,8.05456136,139.81,139.79,14.38]
[1745210743393,0.03,139.82,139.79,14.38]
[1745210743587,8.08456136,139.82,139.79,14.38]
[1745210743992,0.03,139.82,139.79,14.38]
[1745210744198,8.08456136,139.82,139.79,14.38]
[1745210744797,8.05456136,139.81,139.79,14.38]
[1745210745507,0.03,139.82,139.79,14.38]
[1745210745800,8.05456136,139.81,139.79,14.38]
[1745210755000,8.08456136,139.82,139.79,14.38]
[1745210755496,0.03,139.82,139.8,8.05456136]
[1745210761207,0.03,139.82,139.79,14.38]
[1745210761381,0.03,139.82,139.8,8.05456136]
[1745210762502,0.03,139.82,139.81,8.19672293]
[1745210767507,0.03,139.82,139.81,9.80562293]
[1745210768710,0.03,139.82,139.8,26.0]
[1745210769907,0.03,139.82,139.81,26.0]
[1745210773310,0.03,139.82,139.81,34.05456136]
[1745210774314,0.03,139.82,139.81,34.19672293]
[1745210775515,0.03,139.82,139.81,279.13672293]
[1745210776108,0.03,139.82,139.81,297.78637179]
[1745210776529,0.03,139.83,139.82,1.75106157]
[1745210776813,0.03,139.83,139.82,118.08810963]
[1745210777030,0.03,139.85,139.84,44.79181043]
[1745210777195,0.03,139.86,139.85,26.77061043]
[1745210777516,0.03,139.86,139.85,34.82517179]
[1745210778103,0.03,139.86,139.85,26.77061043]
[1745210778300,0.03,139.86,139.85,34.82517179]
[1745210778620,0.03,139.86,139.81,252.9188]
[1745210778914,0.03,139.86,139.83,8.05456136]
[1745210779515,0.03,139.86,139.85,26.0]
[1745210779712,8.08456136,139.86,139.82,14.36]
[1745210779916,8.05456136,139.84,139.82,14.36]
[1745210781499,8.05456136,139.85,139.82,14.36]
[1745210782014,0.03,139.86,139.82,14.36]
[1745210782217,0.03,139.86,139.82,22.41456136]
[1745210783025,8.08456136,139.86,139.82,22.41456136]
[1745210783400,0.03,139.86,139.82,22.41456136]
[1745210784096,8.08456136,139.86,139.82,22.41456136]
[1745210786503,0.03,139.86,139.82,22.41456136]
[1745210787025,0.03,139.86,139.83,8.19672293]
[1745210788120,0.03,139.86,139.83,8.05456136]
[1745210788721,7.61456136,139.87,139.83,0.14216157]
[1745210790023,0.03,139.88,139.83,26.84637179]
[1745210790224,0.03,139.88,139.84,8.05456136]
[1745210791315,0.03,139.88,139.85,8.19672293]
[1745210794903,0.03,139.88,139.86,244.88]
[1745210795225,0.03,139.88,139.87,14.36]
[1745210801335,0.03,139.88,139.87,48.55672293]
[1745210803236,0.03,139.88,139.87,67.20637179]
[1745210805542,0.03,139.88,139.87,59.15181043]
[1745210805718,0.03,139.88,139.87,67.20637179]
[1745210812723,1e-08,139.88,139.87,67.20637179]
[1745210815541,1e-08,139.88,139.87,41.20637179]
[1745210816420,1e-08,139.88,139.87,139.90680963]
[1745210816626,0.03,139.92,139.91,18.79181043]
[1745210816830,0.03,139.92,139.91,26.84637179]
[1745210817028,0.03,139.92,139.91,8.19672293]
[1745210818561,0.03,139.92,139.91,0.14216157]
[1745210819135,0.03,139.92,139.91,8.19672293]
[1745210822454,0.03,139.92,139.91,0.14216157]
[1745210822874,0.03,139.92,139.91,18.79181043]
[1745210823064,0.03,139.92,139.91,26.84637179]
[1745210823530,0.03,139.92,139.91,271.62637179]
[1745210826542,0.03,139.92,139.91,244.78]
[1745210828255,0.03,139.92,139.91,259.12]
[1745210830256,0.03,139.92,139.91,285.96637179]
[1745210831460,0.03,139.98,139.95,1.6261]
[1745210831664,0.03,139.98,139.97,26.0]
[1745210832565,8.08456136,139.98,139.92,0.14216157]
[1745210832740,8.05456136,139.96,139.93,14.34]
[1745210833244,0.03,139.98,139.94,0.14216157]
[1745210833443,8.08456136,139.98,139.94,0.14216157]
[1745210833844,8.05456136,139.97,139.93,14.34]
[1745210835377,0.03,139.98,139.94,8.19672293]
[1745210837265,0.03,139.98,139.94,8.05456136]
[1745210838758,0.03,139.98,139.97,0.14216157]
[1745210839140,0.03,139.98,139.96,26.0]
[1745210839340,0.03,139.98,139.97,0.14216157]
[1745210841946,0.03,139.98,139.96,26.0]
[1745210845265,0.03,139.98,139.96,34.05456136]
[1745210845567,0.03,139.98,139.97,8.19672293]
[1745210845866,0.03,139.98,139.97,252.89672293]
[1745210846451,0.03,139.98,139.97,244.84216157]
[1745210848368,0.03,139.98,139.97,271.54637179]
[1745210852779,0.03,140.04,140.0,44.64964886]
[1745210853073,0.03,140.04,140.03,34.19672293]
[1745210853255,0.03,140.04,140.03,48.53672293]
[1745210854145,0.03,140.04,140.03,40.48216157]
[1745210854353,0.03,140.04,140.03,14.34]
[1745210858075,8.08456136,140.04,140.03,14.34]
[1745210859072,0.03,140.04,140.03,14.34]
[1745210859471,8.08456136,140.04,140.03,14.34]
[1745210859672,0.03,140.04,140.03,14.34]
[1745210859866,8.08456136,140.04,140.03,14.34]
[1745210861377,0.03,140.04,140.03,14.34]
[1745210861585,0.03,140.04,140.03,14.48216157]
[1745210861759,0.03,140.04,140.03,14.34]
[1745210865079,0.03,140.04,140.03,258.92]
[1745210871663,8.08456136,140.04,140.03,258.92]
[1745210872287,0.03,140.04,140.03,258.92]
[1745210876661,0.03,140.04,140.03,285.76637179]
[1745210880277,0.03,140.04,140.03,267.11672293]
[1745210880472,0.03,140.04,140.03,244.58]
[1745210880668,0.03,140.04,140.03,259.32]
[1745210881073,0.03,140.04,140.03,267.37456136]
[1745210881293,0.03,140.04,140.03,259.32]
[1745210883480,0.03,140.1,140.04,18.64964886]
[1745210883788,8.05456136,140.08,140.04,0.14216157]
[1745210883997,8.05456136,140.08,140.03,259.32]
[1745210884170,9.61006136,140.08,140.03,259.32]
[1745210884594,9.61006136,140.08,140.03,267.37456136]
[1745210884801,0.03,140.1,140.08,21.44]
[1745210884974,3.53566521,140.19,140.08,21.44]
[1745210884975,0.03,140.19,140.18,8.19672293]
[1745210885176,0.03,140.19,140.18,259.28]
[1745210885881,0.03,140.19,140.18,267.33456136]
[1745210886185,1.537,140.22,140.18,267.33456136]
[1745210886186,8.05456136,140.26,140.19,0.14216157]
[1745210886381,17.40742022,140.27,140.21,26.0]
[1745210886693,17.40742022,140.27,140.19,26.0]
[1745210886694,8.05456136,140.23,140.19,26.0]
[1745210887183,6.2015,140.27,140.19,26.0]
[1745210887374,8.05456136,140.23,140.19,26.0]
[1745210889294,12.50859305,140.23,140.19,26.0]
[1745210889989,2.7242697,140.29,140.21,12.50859305]
[1745210890188,12.50859305,140.24,140.19,38.50859305]
[1745210890695,12.50859305,140.23,140.19,26.0]
[1745210890993,12.50859305,140.25,140.21,26.0]
[1745210891498,12.50859305,140.26,140.22,0.14216157]
[1745210891793,12.50859305,140.26,140.23,15.06]
[1745210892382,12.50859305,140.26,140.23,41.06]
[1745210892583,12.50859305,140.25,140.23,41.06]
[1745210892782,12.50859305,140.25,140.23,15.06]
[1745210893187,12.50859305,140.24,140.23,15.06]
[1745210898882,12.00859305,140.24,140.23,15.06]
[1745210899611,18.28849305,140.24,140.23,15.06]
[1745210908315,1.1872697,140.29,140.23,21.5767]
[1745210908510,12.50859305,140.27,140.24,15.04]
[1745210908810,1.1872697,140.29,140.24,15.04]
[1745210908993,12.50859305,140.27,140.24,15.04]
[1745210909199,12.50859305,140.26,140.24,15.04]
[1745210911508,8.00084905,140.26,140.24,15.04]
[1745210912213,8.00084905,140.25,140.24,15.04]
[1745210912417,8.00084905,140.26,140.24,15.04]
[1745210913228,1.1872697,140.29,140.24,15.04]
[1745210913229,8.00084905,140.25,140.24,15.04]
[1745210915708,32.0033962,140.28,140.24,15.04]
[1745210915903,8.00084905,140.25,140.24,15.04]
[1745210918728,32.0033962,140.28,140.24,15.04]
[1745210918910,8.00084905,140.25,140.24,15.04]
[1745210919708,32.0033962,140.28,140.24,15.04]
[1745210920030,8.00084905,140.25,140.24,15.04]
[1745210924424,8.00084905,140.26,140.24,15.04]
[1745210925121,1.1872697,140.29,140.24,15.04]
[1745210925452,8.00084905,140.26,140.24,15.04]
[1745210926738,8.00084905,140.25,140.24,15.04]
[1745210931043,1.1872697,140.29,140.24,15.04]
[1745210931220,8.00084905,140.26,140.24,15.04]
[1745210932343,1.1872697,140.29,140.24,15.04]
[1745210933046,8.00084905,140.27,140.24,15.04]
[1745210934725,8.00084905,140.26,140.24,15.04]
[1745210935128,8.00084905,140.27,140.24,15.04]
[1745210936338,1.1872697,140.29,140.24,15.04]
[1745210936530,8.00084905,140.27,140.24,15.04]
[1745210942139,1.1872697,140.29,140.24,15.04]
[1745210942325,8.00084905,140.25,140.22,270.22]
[1745210942525,32.0033962,140.28,140.23,15.06]
[1745210943633,8.00084905,140.24,140.23,15.06]
[1745210945445,8.00084905,140.25,140.23,15.06]
[1745210949953,8.00084905,140.24,140.23,15.06]
[1745210951852,32.0033962,140.28,140.23,15.06]
[1745210952157,8.00084905,140.24,140.23,15.06]
[1745210952326,1.1872697,140.29,140.23,15.06]
[1745210952532,8.00084905,140.27,140.23,15.06]
[1745210952732,1.1872697,140.29,140.23,15.06]
[1745210953030,8.00084905,140.25,140.23,15.06]
[1745210953343,8.00084905,140.24,140.23,15.06]
[1745210954355,8.00084905,140.25,140.23,15.06]
[1745210956938,8.00084905,140.26,140.23,15.06]
[1745210958465,8.00084905,140.25,140.23,15.06]
[1745210961671,33.5507962,140.28,140.23,15.06]
[1745210961952,1.1872697,140.29,140.23,49.06084905]
[1745210962146,9.18811875,140.29,140.24,0.14216157]
[1745210962655,8.00084905,140.28,140.24,0.14216157]
[1745210963152,8.00084905,140.28,140.22,244.22]
[1745210963153,8.00084905,140.25,140.22,244.22]
[1745210963358,8.00084905,140.24,140.23,14.76]
[1745210963940,8.8224697,140.29,140.23,14.76]
[1745210964271,32.0033962,140.28,140.23,14.76]
[1745210964472,8.00084905,140.24,140.23,14.76]
[1745210966244,8.00084905,140.25,140.23,14.76]
[1745210967457,8.00084905,140.25,140.24,244.2]
[1745210972270,8.00084905,140.25,140.24,258.96]
[1745210972748,1.1872697,140.29,140.24,259.10216157]
[1745210973062,1.1872697,140.29,140.24,258.96]
[1745210973269,8.00084905,140.28,140.24,258.96]
[1745210973456,8.00084905,140.27,140.24,258.96]
[1745210973657,8.00084905,140.28,140.24,258.96]
[1745210976050,8.00084905,140.27,140.24,258.96]
[1745210981153,8.00084905,140.26,140.24,258.96]
[1745210983977,8.0005891,140.26,140.24,258.96]
[1745210984355,1.1872697,140.29,140.24,258.96]
[1745211001185,8.0005891,140.25,140.24,244.2]
[1745211001480,8.0005891,140.25,140.24,258.84]
[1745211003582,8.0005891,140.25,140.24,244.2]
[1745211003768,8.0005891,140.25,140.24,258.84]
[1745211008689,15.9010891,140.25,140.24,14.64]
[1745211009091,47.9034455,140.25,140.2,244.22]
[1745211009289,8.0005891,140.21,140.2,244.22]
[1745211009483,8.0005891,140.21,140.18,0.063]
[1745211011880,8.0005891,140.19,140.18,0.063]
[1745211015301,8.0005891,140.19,140.18,258.803]
[1745211018698,7.9005,140.25,140.18,258.803]
[1745211019089,8.0005891,140.19,140.18,258.803]
[1745211026711,7.9005,140.25,140.18,258.803]
[1745211026894,8.0005891,140.22,140.19,0.14216157]
[1745211027417,8.0005891,140.21,140.2,26.0]
[1745211027586,18.64964886,140.27,140.18,258.803]
[1745211027787,8.0005891,140.2,140.18,284.803]
[1745211027983,8.0005891,140.19,140.18,284.803]
[1745211030524,8.0005891,140.2,140.18,284.803]
[1745211038427,18.64964886,140.27,140.18,284.803]
[1745211038629,8.0005891,140.21,140.18,284.803]
[1745211041915,80.8,140.28,140.22,26.0]
[1745211042099,8.0005891,140.24,140.23,14.46]
[1745211047123,8.0005891,140.24,140.23,258.7]
[1745211064135,112.8023564,140.28,140.23,258.7]
[1745211064433,8.0005891,140.24,140.23,258.7]
[1745211068543,80.8,140.28,140.23,258.7]
[1745211068741,8.0005891,140.25,140.23,258.7]
[1745211069224,2.7076697,140.29,140.23,258.7]
[1745211069423,8.0005891,140.26,140.23,284.7]
[1745211069630,32.0023564,140.28,140.23,284.7]
[1745211069823,8.0005891,140.25,140.23,284.7]
[1745211070021,8.0005891,140.26,140.23,284.7]
[1745211073655,2.7076697,140.29,140.23,284.7]
[1745211073957,8.0005891,140.26,140.23,284.7]
[1745211084258,1.1872697,140.29,140.25,26.0]
[1745211084434,8.0005891,140.27,140.25,26.0]
[1745211087156,8.0005891,140.27,140.26,14.34]
[1745211091367,1.1872697,140.29,140.26,14.34]
[1745211091539,9.1878588,140.29,140.26,14.34]
[1745211091739,9.1878588,140.29,140.28,26.0]
[1745211092448,9.1878588,140.29,140.26,40.34]
[1745211092650,8.0005891,140.27,140.26,40.34]
[1745211093663,8.0005891,140.27,140.26,284.5]
[1745211101459,8.0005891,140.27,140.26,258.5]
[1745211102159,1.1872697,140.29,140.26,258.5]
[1745211102772,1.1872697,140.29,140.28,26.0]
[1745211104863,1.1872697,140.29,140.28,26.14216157]
[1745211105559,1.1872697,140.29,140.28,59.13181043]
[1745211106176,1.1872697,140.29,140.28,139.83181043]
[1745211106354,1.1872697,140.29,140.28,145.40304271]
[1745211107254,1.1872697,140.29,140.28,139.83181043]
[1745211107767,1.1872697,140.29,140.28,40.48216157]
[1745211107963,1.16874573,140.29,140.28,40.48216157]
[1745211109981,1.16874573,140.29,140.28,40.19059157]
[1745211115886,0.03,140.32,140.29,0.14216157]
[1745211116567,0.03,140.32,140.31,26.14216157]
[1745211118964,0.03,140.32,140.31,29.70576819]
[1745211119885,0.03,140.32,140.31,29.56360662]
[1745211120067,0.03,140.32,140.31,273.62360662]
[1745211120272,0.03,140.32,140.31,270.06]
[1745211121483,8.0305891,140.32,140.31,244.06]
[1745211124863,8.0305891,140.32,140.31,258.4]
[1745211125473,0.03,140.32,140.31,258.4]
[1745211126868,8.0305891,140.32,140.31,258.4]
[1745211127874,0.03,140.32,140.31,258.54216157]
[1745211128127,0.03,140.32,140.31,284.54216157]
[1745211142789,0.03,140.32,140.31,258.4]
[1745211143002,8.0305891,140.32,140.31,258.4]
[1745211143301,0.03,140.32,140.31,258.4]
[1745211143808,0.00548948,140.32,140.31,258.4]
[1745211145307,0.00548948,140.32,140.31,258.54216157]
[1745211150316,0.00548948,140.32,140.31,277.19181043]
[1745211157527,0.00548948,140.32,140.31,258.54216157]
[1745211157697,0.00548948,140.32,140.31,284.4]
[1745211157900,0.00548948,140.32,140.31,258.54216157]
[1745211158137,0.00548948,140.32,140.31,284.4]
[1745211158510,0.00548948,140.32,140.31,284.54216157]
[1745211160626,0.00548948,140.32,140.31,270.20216157]
[1745211160809,8.00607858,140.32,140.31,258.38]
[1745211161610,14.42017858,140.32,140.31,258.38]
[1745211162511,14.42017858,140.32,140.28,244.0]
[1745211162816,8.0005891,140.29,140.24,26.063]
[1745211163126,8.0005891,140.26,140.24,26.063]
[1745211164625,8.0005891,140.27,140.24,26.063]
[1745211165227,8.0005891,140.26,140.25,258.36]
[1745211166315,8.0005891,140.27,140.25,258.36]
[1745211167730,8.0005891,140.26,140.25,244.04]
[1745211167930,8.0005891,140.26,140.25,258.36]
[1745211177315,1.5359,140.31,140.25,258.36]
[1745211177538,8.0005891,140.27,140.25,258.36]
[1745211178144,1.5359,140.31,140.25,258.36]
[1745211178334,8.0005891,140.27,140.25,258.36]
[1745211179445,1.5359,140.31,140.25,258.36]
[1745211179647,8.0005891,140.27,140.25,258.36]
[1745211182756,8.0005891,140.26,140.25,258.50216157]
[1745211183122,8.0005891,140.26,140.25,258.36]
[1745211183547,8.0005891,140.26,140.25,258.50216157]
[1745211183739,8.0005891,140.27,140.25,258.50216157]
[1745211183930,8.0005891,140.26,140.25,258.50216157]
[1745211185247,8.0005891,140.26,140.25,258.36]
[1745211185454,8.0005891,140.26,140.25,258.50216157]
[1745211186847,8.0005891,140.27,140.25,258.50216157]
[1745211188944,6.41958948,140.32,140.26,18.79181043]
[1745211189151,8.0005891,140.3,140.26,18.79181043]
[1745211189453,0.00548948,140.32,140.26,18.79181043]
[1745211189640,8.0005891,140.31,140.26,18.79181043]
[1745211190328,0.00548948,140.32,140.26,18.79181043]
[1745211190559,8.00607858,140.32,140.26,18.79181043]
[1745211192657,8.0005891,140.31,140.3,0.14216157]
[1745211192842,8.0005891,140.31,140.3,14.48216157]
[1745211193866,8.0005891,140.31,140.3,14.34]
[1745211194434,0.03,140.33,140.31,18.79181043]
[1745211195251,8.0305891,140.33,140.32,26.0]
[1745211197455,0.03,140.33,140.32,26.14216157]
[1745211200963,8.0305891,140.33,140.32,26.0]
[1745211201261,0.03,140.33,140.32,26.0]
[1745211203792,0.03,140.33,140.32,26.14216157]
[1745211205783,0.03,140.33,140.32,44.79181043]
[1745211209193,0.03,140.33,140.32,125.49181043]
[1745211210611,0.03,140.33,140.32,369.51181043]
[1745211213799,0.02046626,140.35,140.33,0.14216157]
[1745211214500,0.02046626,140.35,140.33,18.79181043]
[1745211215199,0.02046626,140.35,140.33,0.14216157]
[1745211215399,0.02046626,140.35,140.34,14.46216157]
[1745211229315,0.03,140.38,140.37,19.64964886]
[1745211229491,0.03,140.47,140.39,0.14216157]
[1745211229694,1.6317,140.47,140.43,26.0]
[1745211230014,1.6317,140.47,140.44,243.98]
[1745211230187,1.6317,140.47,140.45,14.32]
[1745211232211,0.03,140.47,140.45,14.32]
[1745211232412,0.03,140.47,140.46,0.14216157]
[1745211232793,0.03,140.47,140.45,14.32]
[1745211233699,8.0305891,140.47,140.45,14.32]
[1745211234519,8.0005891,140.46,140.45,14.32]
[1745211235997,8.0005891,140.46,140.44,243.98]
[1745211236208,8.0005891,140.45,140.44,243.98]
[1745211236521,8.0005891,140.45,140.44,258.28]
[1745211245432,6.209,140.47,140.44,258.28]
[1745211245630,8.0005891,140.45,140.44,258.28]
[1745211249044,6.209,140.47,140.44,258.28]
[1745211249228,8.0005891,140.45,140.44,258.28]
[1745211256549,0.03,140.47,140.44,258.28]
[1745211256851,8.0305891,140.47,140.44,258.28]
[1745211257029,0.03,140.47,140.44,258.28]
[1745211257224,8.0305891,140.47,140.44,258.28]
[1745211257851,0.03,140.47,140.44,258.28]
[1745211258151,8.0005891,140.46,140.44,258.28]
[1745211258927,8.0005891,140.45,140.44,258.28]
[1745211264062,8.0005891,140.45,140.44,243.98]
[1745211264223,9.5646891,140.45,140.44,258.28]
[1745211267643,0.03,140.47,140.44,258.28]
[1745211267854,8.0005891,140.45,140.44,258.28]
[1745211274141,8.0005891,140.45,140.41,243.86]
[1745211274345,0.03,140.47,140.42,14.3]
[1745211274532,8.0005891,140.43,140.42,14.3]
[1745211284648,0.03,140.47,140.42,14.3]
[1745211284959,8.0005891,140.43,140.42,14.3]
[1745211302076,40.0029455,140.43,140.41,243.86]
[1745211302249,40.0029455,140.42,140.41,243.86]
[1745211302453,40.0029455,140.42,140.35,0.063]
[1745211302656,8.0005891,140.38,140.35,0.063]
[1745211304474,8.0005891,140.38,140.35,26.063]
[1745211305379,8.0005891,140.38,140.36,258.24]
[1745211306781,32.0023564,140.42,140.36,258.24]
[1745211307075,80.8,140.46,140.37,19.47164784]
[1745211307267,8.0005891,140.42,140.37,19.47164784]
[1745211307651,8.0005891,140.41,140.37,19.47164784]
[1745211308782,8.0005891,140.41,140.37,10.06999473]
[1745211309083,8.0005891,140.41,140.37,0.14216157]
[1745211314061,8.0005891,140.4,140.37,0.14216157]
[1745211314382,8.0005891,140.4,140.38,14.3]
[1745211314677,80.8,140.46,140.38,15.9153]
[1745211315185,8.0005891,140.41,140.38,15.9153]
[1745211315785,8.0005891,140.4,140.38,14.3]
[1745211315982,8.0005891,140.39,140.38,14.3]
[1745211324475,8.0005891,140.39,140.35,0.063]
[1745211324798,8.0005891,140.36,140.35,0.063]
[1745211325496,8.0005891,140.36,140.35,258.323]
[1745211334218,8.0005891,140.36,140.35,244.023]
[1745211334505,8.0005891,140.36,140.35,258.323]
[1745211335408,58.65259436,140.36,140.34,14.3]
[1745211335584,8.0005891,140.35,140.34,14.3]
[1745211337125,80.8,140.38,140.34,14.3]
[1745211337295,8.0005891,140.35,140.34,14.3]
[1745211338491,1.54,140.4,140.34,14.3]
[1745211338794,8.0005891,140.37,140.34,14.3]
[1745211339296,8.0005891,140.36,140.34,14.3]
[1745211341112,8.0005891,140.37,140.34,14.3]
[1745211345210,8.0005891,140.37,140.35,244.0]
[1745211348618,8.0005891,140.37,140.36,14.3]
[1745211348800,8.0005891,140.38,140.36,14.3]
[1745211352021,112.8023564,140.42,140.36,14.3]
[1745211352215,8.0005891,140.38,140.36,14.3]
[1745211354519,0.14216157,140.45,140.36,14.3]
[1745211354520,18.64964886,140.45,140.36,14.3]
[1745211354711,8.0005891,140.41,140.37,0.14216157]
[1745211356323,6.6089,140.46,140.37,0.14216157]
[1745211356628,8.0005891,140.43,140.38,1.5022]
[1745211357428,1.5547,140.47,140.38,1.5022]
[1745211357726,8.0005891,140.43,140.38,1.5022]
[1745211357929,8.0005891,140.42,140.38,1.5022]
[1745211358324,8.0005891,140.41,140.39,0.14216157]
[1745211358526,8.0005891,140.4,140.39,0.14216157]
[1745211359025,8.0005891,140.41,140.39,0.14216157]
[1745211359321,8.0005891,140.41,140.39,26.14216157]
[1745211359636,8.0005891,140.42,140.39,26.14216157]
[1745211359837,1.5547,140.47,140.39,26.14216157]
[1745211360027,8.0005891,140.43,140.39,26.14216157]
[1745211361132,8.0005891,140.44,140.39,26.14216157]
[1745211361335,8.0005891,140.43,140.39,26.14216157]
[1745211361840,1.5547,140.47,140.42,0.14216157]
[1745211362021,0.03,140.47,140.43,14.3]
[1745211362335,8.0005891,140.44,140.43,14.44216157]
[1745211362510,0.03,140.47,140.43,14.44216157]
[1745211362709,8.0005891,140.44,140.43,14.44216157]
[1745211365428,8.0005891,140.45,140.43,14.44216157]
[1745211365619,8.0005891,140.46,140.44,0.14216157]
[1745211367612,8.0005891,140.45,140.44,0.14216157]